bitfinex/quotes_SOLUSD_20220104
["timestamp","ask_amount","ask_price","bid_price","bid_amount"]
[1641333865313,8.78,168.99,168.91,3.59948299]
[1641333867217,9.28,168.99,168.91,3.59948299]
[1641333868221,74.0,168.98,168.81,1.3526]
[1641333868419,8.52,168.97,168.81,0.5]
[1641333868618,25.9075,168.96,168.81,0.5]
[1641333868819,8.52,168.95,168.81,0.5]
[1641333869023,8.78,168.95,168.8,103.1173]
[1641333869218,9.28,168.95,168.8,103.3773]
[1641333870218,26.77399544,168.93,168.8,103.3773]
[1641333870419,27.27399544,168.93,168.8,104.7083]
[1641333870620,0.5,168.93,168.81,1.44850786]
[1641333870820,0.5,168.93,168.81,8.52350786]
[1641333871019,1.34,168.94,168.81,8.78350786]
[1641333871420,8.52,168.95,168.81,7.335]
[1641333871623,29.58564838,168.94,168.81,7.335]
[1641333872524,29.58564838,168.94,168.81,8.78350786]
[1641333874426,29.58564838,168.94,168.81,17.30350786]
[1641333875127,29.58564838,168.94,168.81,16.80350786]
[1641333875728,29.58564838,168.94,168.81,16.54350786]
[1641333876333,29.58564838,168.94,168.81,17.04350786]
[1641333876930,29.58564838,168.94,168.82,24.7159]
[1641333877333,29.58564838,168.94,168.82,25.4759]
[1641333878334,29.58564838,168.94,168.82,25.2159]
[1641333878732,29.58564838,168.94,168.82,26.451]
[1641333879534,29.84564838,168.94,168.82,26.711]
[1641333880568,29.84564838,168.94,168.82,26.451]
[1641333881339,30.08564838,168.94,168.82,31.422]
[1641333881538,29.58564838,168.94,168.82,31.422]
[1641333881940,29.58564838,168.94,168.82,31.682]
[1641333882839,29.84564838,168.94,168.82,31.682]
[1641333883041,29.84564838,168.94,168.82,26.711]
[1641333885642,29.84564838,168.94,168.82,25.951]
[1641333885847,38.86564838,168.94,168.8,79.835]
[1641333886046,25.6842,168.93,168.8,79.835]
[1641333886246,8.52,168.92,168.79,23.1602]
[1641333886444,9.02,168.92,168.77,25.5761]
[1641333886644,84.9171,168.92,168.77,50.10779865]
[1641333887252,1.318,168.91,168.77,50.10779865]
[1641333887449,1.818,168.91,168.77,50.60779865]
[1641333887652,2.078,168.91,168.77,50.86779865]
[1641333890080,2.078,168.91,168.77,26.0761]
[1641333892582,2.078,168.91,168.77,26.3361]
[1641333894783,1.318,168.91,168.77,26.3361]
[1641333894987,84.1571,168.92,168.77,33.1281]
[1641333895186,75.6371,168.92,168.78,9.96850786]
[1641333895386,75.6371,168.92,168.79,23.7478]
[1641333895685,75.6371,168.92,168.79,32.5278]
[1641333895985,75.6371,168.92,168.79,34.47630786]
[1641333896185,75.8971,168.92,168.8,1.3306]
[1641333896387,75.8971,168.92,168.8,10.3506]
[1641333896686,75.8971,168.92,168.8,10.6106]
[1641333896887,75.6371,168.92,168.81,22.6506]
[1641333897088,8.52,168.95,168.81,30.3846]
[1641333897292,8.52,168.95,168.81,30.8846]
[1641333897491,8.52,168.95,168.81,32.33310786]
[1641333897888,8.52,168.95,168.82,28.21607111]
[1641333898094,8.52,168.95,168.82,28.47607111]
[1641333898290,8.52,168.95,168.82,28.97607111]
[1641333898788,8.78,168.95,168.82,28.97607111]
[1641333899189,8.78,168.95,168.83,22.988]
[1641333899390,8.78,168.95,168.83,23.488]
[1641333899591,8.78,168.95,168.83,23.748]
[1641333900991,8.78,168.95,168.83,30.455]
[1641333901192,0.26,168.95,168.83,30.455]
[1641333901594,25.4179,168.96,168.83,30.455]
[1641333901996,23.8399,168.97,168.83,30.455]
[1641333902198,23.8399,168.97,168.84,1.2297]
[1641333902396,23.8399,168.97,168.84,1.7297]
[1641333902598,23.8399,168.97,168.84,1.9897]
[1641333903800,8.52,168.98,168.84,1.9897]
[1641333904000,9.02,168.98,168.84,1.9897]
[1641333904201,0.5,168.98,168.85,8.52]
[1641333904401,0.5,168.98,168.86,24.5858]
[1641333904599,24.8722,168.99,168.86,24.8458]
[1641333904800,24.8722,168.99,168.86,25.3458]
[1641333905103,24.8722,168.99,168.87,1.271]
[1641333905499,24.8722,168.99,168.87,2.031]
[1641333906401,24.3722,168.99,168.87,2.031]
[1641333907633,74.5769,169.0,168.87,2.031]
[1641333907826,75.0769,169.0,168.87,2.031]
[1641333909728,75.0769,169.0,168.87,9.84450786]
[1641333909930,8.52,169.01,168.87,9.84450786]
[1641333910132,23.7483,169.02,168.88,8.52]
[1641333910330,23.7483,169.02,168.89,23.3179]
[1641333910529,24.0083,169.02,168.9,27.88342176]
[1641333910731,24.0083,169.02,168.91,25.2141]
[1641333910934,24.0083,169.02,168.91,25.7141]
[1641333911136,24.0083,169.02,168.91,33.94460786]
[1641333911935,0.26,169.02,168.91,32.4961]
[1641333912433,1.4897,169.03,168.91,32.4961]
[1641333913436,1.4897,169.03,168.91,41.0161]
[1641333914137,1.2297,169.03,168.91,41.0161]
[1641333914837,22.82350508,169.05,168.91,41.0161]
[1641333915239,23.32350508,169.05,168.91,41.0161]
[1641333916840,0.5,169.05,168.91,41.0161]
[1641333917242,108.0826,169.07,168.91,40.7561]
[1641333917940,131.65699008,169.07,168.91,40.7561]
[1641333918543,131.65699008,169.07,168.91,41.0161]
[1641333920146,131.65699008,169.07,168.91,34.4941]
[1641333922547,133.10549794,169.07,168.91,25.2141]
[1641333922747,138.99811689,169.07,168.91,25.2141]
[1641333922949,140.67206371,169.07,168.91,23.9508]
[1641333923447,140.67206371,169.07,168.88,83.7197]
[1641333923647,149.44790249,169.07,168.88,75.1997]
[1641333923847,149.44790249,169.07,168.88,0.76]
[1641333924048,149.44790249,169.07,168.88,0.5]
[1641333924251,149.44790249,169.07,168.85,58.44715822]
[1641333924649,158.33020249,169.07,168.85,58.44715822]
[1641333924849,1.67394682,169.05,168.85,58.44715822]
[1641333925050,8.52,169.04,168.85,58.44715822]
[1641333925248,24.8497,169.03,168.85,58.44715822]
[1641333925451,8.52,169.02,168.85,58.70715822]
[1641333925650,13.40224229,169.0,168.85,58.70715822]
[1641333925850,23.4173,168.99,168.85,58.70715822]
[1641333926451,1.3556,168.98,168.85,58.44715822]
[1641333926852,1.3556,168.98,168.85,35.2248]
[1641333927052,1.6156,168.98,168.85,35.2248]
[1641333927954,1.6156,168.98,168.85,10.3742]
[1641333928155,2.1156,168.98,168.85,10.3742]
[1641333928753,1.6156,168.98,168.85,10.3742]
[1641333929955,1.6156,168.98,168.85,10.6342]
[1641333930359,1.6156,168.98,168.85,9.02]
[1641333930563,2.1156,168.98,168.85,9.02]
[1641333931559,2.1156,168.98,168.85,9.28]
[1641333931961,1.6156,168.98,168.85,9.28]
[1641333932161,1.3556,168.98,168.85,9.28]
[1641333932561,1.3556,168.98,168.86,24.0858]
[1641333933088,1.3556,168.98,168.86,24.8458]
[1641333933285,1.3556,168.98,168.87,1.2763]
[1641333933488,1.3556,168.98,168.87,7.9433]
[1641333940193,1.3556,168.98,168.87,2.0363]
[1641333940395,1.8556,168.98,168.87,2.0363]
[1641333940696,2.1156,168.98,168.87,0.76]
[1641333940897,2.1156,168.98,168.87,0.26]
[1641333941097,2.1156,168.98,168.85,9.28]
[1641333942896,2.1156,168.98,168.85,10.625]
[1641333945000,1.8556,168.98,168.85,10.625]
[1641333946402,2.1156,168.98,168.85,10.625]
[1641333946601,10.6356,168.98,168.85,0.26]
[1641333946801,10.6356,168.98,168.81,1.3349]
[1641333947705,23.3932,168.97,168.81,25.0036]
[1641333947901,8.52,168.96,168.81,25.0036]
[1641333948103,8.78,168.96,168.81,25.7636]
[1641333948402,24.8834,168.95,168.81,25.7636]
[1641333948604,25.1434,168.95,168.81,25.7636]
[1641333948803,23.57439008,168.93,168.81,25.7636]
[1641333949101,24.3353,168.92,168.81,25.7636]
[1641333949304,24.3353,168.92,168.81,1.5949]
[1641333949504,2.68420786,168.91,168.76,76.9488]
[1641333949704,8.52,168.9,168.76,78.2607]
[1641333949905,24.2787,168.89,168.75,24.9749]
[1641333950104,9.7997,168.88,168.75,24.9749]
[1641333950606,10.5597,168.88,168.75,24.9749]
[1641333951307,10.5597,168.88,168.75,25.4749]
[1641333952004,13.40224229,168.86,168.75,25.4749]
[1641333952205,21.92224229,168.86,168.75,25.4749]
[1641333952405,21.92224229,168.86,168.75,25.7349]
[1641333952805,79.2315,168.89,168.75,25.7349]
[1641333953006,79.2315,168.89,168.76,1.3323]
[1641333953205,79.7315,168.89,168.76,1.3323]
[1641333953405,79.2315,168.89,168.76,2.0923]
[1641333953908,29.05199234,168.88,168.76,2.0923]
[1641333954108,30.65759234,168.88,168.76,2.0923]
[1641333955208,31.15759234,168.88,168.76,2.0923]
[1641333955905,30.65759234,168.88,168.76,2.0923]
[1641333956105,31.15759234,168.88,168.76,2.0923]
[1641333956305,30.65759234,168.88,168.76,2.0923]
[1641333956705,31.15759234,168.88,168.76,2.0923]
[1641333957306,23.2647,168.87,168.76,2.0923]
[1641333958506,29.55199234,168.88,168.76,2.0923]
[1641333958705,29.05199234,168.88,168.76,2.0923]
[1641333960309,1.2514,168.89,168.76,2.0923]
[1641333960509,1.2514,168.89,168.76,17.9393]
[1641333960710,1.2514,168.89,168.77,24.3563]
[1641333960910,1.2514,168.89,168.77,33.3763]
[1641333961112,1.2514,168.89,168.77,33.6363]
[1641333961311,1.2514,168.89,168.78,31.66087333]
[1641333961512,1.2514,168.89,168.78,31.92087333]
[1641333961715,1.2514,168.89,168.78,32.42087333]
[1641333961914,1.2514,168.89,168.79,25.0561]
[1641333962112,1.2514,168.89,168.79,25.3161]
[1641333962312,1.2514,168.89,168.79,25.8161]
[1641333964616,1.2514,168.89,168.79,2.0224]
[1641333967440,1.2514,168.89,168.79,0.5]
[1641333967643,1.5114,168.89,168.79,0.5]
[1641333967840,2.0114,168.89,168.78,23.8601]
[1641333968441,2.0114,168.89,168.76,1.3144]
[1641333968641,2.0114,168.89,168.76,26.2473]
[1641333968942,2.0114,168.89,168.76,26.5073]
[1641333985657,1.7514,168.89,168.76,26.5073]
[1641333986158,0.5,168.89,168.77,8.52]
[1641333986361,29.38837922,168.91,168.78,22.8666]
[1641333986562,29.38837922,168.91,168.78,23.1266]
[1641333986760,29.38837922,168.91,168.78,23.6266]
[1641333986960,29.38837922,168.91,168.79,1.2664]
[1641333987360,29.64837922,168.91,168.79,2.0264]
[1641333987562,22.9745,168.9,168.79,2.0264]
[1641333987863,23.4745,168.9,168.79,2.0264]
[1641333989063,24.8389,168.9,168.79,2.0264]
[1641333989561,24.8389,168.9,168.79,31.08332353]
[1641333990365,24.8389,168.9,168.8,24.4184]
[1641333990564,24.8389,168.9,168.8,24.6784]
[1641333990763,24.8389,168.9,168.8,25.1784]
[1641333991564,24.8389,168.9,168.81,1.3327]
[1641333991963,24.8389,168.9,168.81,2.0927]
[1641333996767,24.3389,168.9,168.81,1.8327]
[1641333996966,24.5989,168.9,168.81,1.8327]
[1641333997769,25.0989,168.9,168.81,1.8327]
[1641333997969,25.0989,168.9,168.81,2.0927]
[1641333998369,24.5989,168.9,168.81,2.0927]
[1641333998768,25.0989,168.9,168.81,2.0927]
[1641334001303,24.5989,168.9,168.81,2.0927]
[1641334013714,24.5989,168.9,168.81,0.5]
[1641334014013,25.0989,168.9,168.8,24.4184]
[1641334014320,24.8389,168.9,168.8,24.4184]
[1641334014714,24.8389,168.9,168.8,24.9184]
[1641334015114,24.8389,168.9,168.8,25.1784]
[1641334015718,25.0989,168.9,168.8,25.1784]
[1641334017519,25.0989,168.9,168.8,24.6784]
[1641334020450,25.0989,168.9,168.8,0.5]
[1641334020648,25.0989,168.9,168.76,25.7068]
[1641334020847,25.0989,168.9,168.76,26.2068]
[1641334021849,25.0989,168.9,168.76,26.4668]
[1641334022249,25.0989,168.9,168.76,26.2068]
[1641334023557,25.0989,168.9,168.76,26.4668]
[1641334024457,24.8389,168.9,168.76,26.4668]
[1641334025960,25.0989,168.9,168.76,26.4668]
[1641334026561,25.0989,168.9,168.76,34.9868]
[1641334043110,25.0989,168.9,168.76,34.7268]
[1641334043314,35.06740786,168.9,168.76,34.7268]
[1641334044508,35.06740786,168.9,168.76,34.9868]
[1641334050415,34.80740786,168.9,168.76,34.9868]
[1641334051820,35.06740786,168.9,168.76,34.9868]
[1641334055223,35.06740786,168.9,168.76,34.7268]
[1641334056525,35.06740786,168.9,168.76,34.9868]
[1641334058029,33.3589,168.9,168.76,34.9868]
[1641334058230,33.3589,168.9,168.77,28.97516909]
[1641334058429,33.3589,168.9,168.77,29.47516909]
[1641334058630,32.8589,168.9,168.78,23.5705]
[1641334058831,32.8589,168.9,168.78,24.0705]
[1641334059031,32.8589,168.9,168.78,24.3305]
[1641334059233,32.8589,168.9,168.79,1.284]
[1641334059534,32.8589,168.9,168.79,2.044]
[1641334062533,9.8844,168.9,168.79,2.044]
[1641334064234,8.52,168.9,168.79,2.044]
[1641334067960,31.8421,168.9,168.79,2.044]
[1641334068359,23.3221,168.9,168.79,2.044]
[1641334070561,23.3221,168.9,168.79,1.784]
[1641334071060,48.432991,168.9,168.79,1.784]
[1641334071761,1.3235,168.89,168.79,1.784]
[1641334071961,1.3235,168.89,168.79,2.044]
[1641334076566,48.432991,168.9,168.79,2.044]
[1641334076967,25.110891,168.9,168.8,8.52]
[1641334077369,25.110891,168.9,168.81,24.7458]
[1641334077567,25.110891,168.9,168.81,25.0058]
[1641334077768,25.110891,168.9,168.81,25.5058]
[1641334077969,25.110891,168.9,168.82,1.3528]
[1641334078369,25.110891,168.9,168.82,2.1128]
[1641334083376,25.110891,168.9,168.83,8.52]
[1641334083574,25.110891,168.9,168.83,8.78]
[1641334083775,25.110891,168.9,168.83,9.28]
[1641334089279,25.110891,168.9,168.83,10.72850786]
[1641334090612,25.110891,168.9,168.83,10.46850786]
[1641334090782,25.110891,168.9,168.83,9.02]
[1641334092082,25.110891,168.9,168.83,9.28]
[1641334096487,25.110891,168.9,168.83,0.76]
[1641334096886,25.110891,168.9,168.82,2.1128]
[1641334097086,25.110891,168.9,168.82,1.6128]
[1641334097289,25.110891,168.9,168.82,2.1128]
[1641334098790,25.110891,168.9,168.82,3.56130786]
[1641334114534,25.110891,168.9,168.82,2.1128]
[1641334115636,25.110891,168.9,168.82,1.8528]
[1641334117136,25.110891,168.9,168.82,2.1128]
[1641334131555,25.110891,168.9,168.88,0.65180431]
[1641334131754,5.56045808,168.89,168.88,0.65180431]
[1641334131954,5.56045808,168.89,168.81,25.2458]
[1641334132160,28.25215808,168.89,168.81,25.2458]
[1641334132757,29.53665808,168.89,168.81,25.2458]
[1641334133356,29.53665808,168.89,168.81,25.5058]
[1641334138858,29.53665808,168.89,168.81,34.0258]
[1641334141691,29.53665808,168.89,168.81,35.47430786]
[1641334146695,5.56045808,168.89,168.81,35.47430786]
[1641334151097,9.31466808,168.89,168.81,35.47430786]
[1641334153238,9.31466808,168.89,168.81,35.21430786]
[1641334154605,35.43516808,168.89,168.81,35.21430786]
[1641334155003,35.43516808,168.89,168.81,35.47430786]
[1641334155905,35.43516808,168.89,168.81,33.7658]
[1641334157105,13.15766489,168.88,168.81,33.7658]
[1641334157307,13.15766489,168.88,168.81,34.0258]
[1641334162312,29.87471,168.89,168.81,34.0258]
[1641334162511,28.60801,168.89,168.82,1.44850786]
[1641334162710,28.60801,168.89,168.82,9.96850786]
[1641334162913,28.60801,168.89,168.82,10.72850786]
[1641334163211,3.75421,168.89,168.82,10.72850786]
[1641334164013,3.75421,168.89,168.82,12.00860786]
[1641334164211,3.75421,168.89,168.82,11.74860786]
[1641334165514,3.75421,168.89,168.82,12.00860786]
[1641334167315,3.75421,168.89,168.84,104.4161966]
[1641334167518,3.75421,168.89,168.85,8.52]
[1641334167714,3.75421,168.89,168.85,9.96850786]
[1641334168016,3.75421,168.89,168.86,10.77302267]
[1641334168215,3.75421,168.89,168.88,82.62545801]
[1641334168416,3.75421,168.89,168.88,92.14742893]
[1641334168615,3.75421,168.89,168.88,93.85593679]
[1641334169018,1.62671,168.89,168.88,93.85593679]
[1641334170318,1e-05,168.89,168.88,93.85593679]
[1641334170919,1e-05,168.89,168.88,41.85593679]
[1641334174247,1e-05,168.89,168.88,41.59593679]
[1641334174447,1e-05,168.89,168.88,10.97047878]
[1641334176156,1e-05,168.89,168.88,37.97047878]
[1641334177957,1e-05,168.89,168.88,38.23047878]
[1641334183963,1e-05,168.89,168.88,66.23047878]
[1641334184395,1e-05,168.89,168.88,38.23047878]
[1641334186368,1e-05,168.89,168.88,47.10747878]
[1641334186969,1e-05,168.89,168.88,153.54747878]
[1641334191173,1e-05,168.89,168.88,162.87199359]
[1641334192502,25.130891,168.9,168.89,55.0]
[1641334192702,25.130891,168.9,168.89,63.52]
[1641334192901,25.130891,168.9,168.89,74.60500786]
[1641334193302,25.110891,168.9,168.89,74.60500786]
[1641334197306,25.110891,168.9,168.89,65.72850786]
[1641334197307,16.234791,168.9,168.89,65.72850786]
[1641334197503,0.004791,168.9,168.89,134.28302267]
[1641334197705,0.02,168.91,168.9,133.995209]
[1641334197904,0.02,168.91,168.9,115.96197092]
[1641334198104,0.02,168.91,168.9,126.99499359]
[1641334198306,0.02,168.91,168.9,153.67026619]
[1641334198904,1.3036,168.99,168.91,64.8555]
[1641334199104,1.3036,168.99,168.92,8.52]
[1641334199304,1.3036,168.99,168.92,34.95430786]
[1641334199504,1.3036,168.99,168.93,1.44850786]
[1641334199704,1.3036,168.99,168.94,8.52]
[1641334199907,1.3036,168.99,168.94,9.02]
[1641334200207,1.3036,168.99,168.95,1.44850786]
[1641334200505,23.7031,169.02,168.96,8.52]
[1641334200905,23.7031,169.02,168.96,10.72850786]
[1641334202608,23.7031,169.02,168.96,9.28]
[1641334203108,22.7031,169.02,168.96,9.28]
[1641334207613,22.7031,169.02,168.96,8.52]
[1641334208015,22.7031,169.02,168.96,3.86372477]
[1641334208416,22.7031,169.02,168.92,8.52]
[1641334208616,22.7031,169.02,168.91,8.52]
[1641334208815,11.24669383,169.0,168.91,8.52]
[1641334209216,11.24669383,169.0,168.91,8.78]
[1641334209616,11.24669383,169.0,168.91,8.52]
[1641334209816,11.24669383,169.0,168.91,9.02]
[1641334211020,11.24669383,169.0,168.91,9.28]
[1641334217731,1.3376,169.01,168.91,9.28]
[1641334223558,1.3376,169.01,168.91,10.72850786]
[1641334226662,1.3376,169.01,168.91,33.84960786]
[1641334227763,1.3376,169.01,168.91,10.72850786]
[1641334230768,1.3376,169.01,168.91,20.05302267]
[1641334232577,1.3376,169.01,168.91,43.20992267]
[1641334233780,1.3376,169.01,168.91,52.08552267]
[1641334233978,1.3376,169.01,168.91,52.48042148]
[1641334234179,24.1289,169.04,168.91,57.84027458]
[1641334234382,48.2259,169.04,168.92,1.3628]
[1641334234580,48.2259,169.04,168.93,36.42778572]
[1641334234780,48.2259,169.04,168.94,31.4212]
[1641334234981,48.2259,169.04,168.95,8.52]
[1641334235182,48.2259,169.04,168.96,24.9999]
[1641334235183,46.9618,169.04,168.96,24.9999]
[1641334235380,46.9618,169.04,168.97,8.52]
[1641334235582,24.097,169.04,168.97,10.22850786]
[1641334235782,24.097,169.04,168.97,10.72850786]
[1641334237906,24.097,169.04,168.98,1.44850786]
[1641334238202,24.097,169.04,168.99,8.52]
[1641334238402,24.097,169.04,168.99,9.02]
[1641334238604,24.097,169.04,168.99,9.28]
[1641334239404,24.097,169.04,169.0,24.58079758]
[1641334239604,24.097,169.04,169.0,24.84079758]
[1641334239808,24.097,169.04,169.0,25.34079758]
[1641334240004,1.2924,169.04,169.0,25.34079758]
[1641334240204,0.02,169.08,169.0,25.34079758]
[1641334240405,0.02,169.08,169.01,8.52]
[1641334240606,0.02,169.08,169.01,8.78]
[1641334240807,0.02,169.08,169.01,9.28]
[1641334241209,25.8986,169.09,169.01,9.28]
[1641334241509,25.8986,169.09,169.01,10.72850786]
[1641334246513,25.8986,169.09,169.01,12.01520786]
[1641334249926,24.8986,169.09,169.01,12.01520786]
[1641334250525,24.8986,169.09,169.01,11.75520786]
[1641334250725,24.8986,169.09,169.01,10.3067]
[1641334252027,24.8986,169.09,169.01,10.5667]
[1641334264668,24.8986,169.09,169.01,10.3067]
[1641334265065,24.8986,169.09,169.01,9.8067]
[1641334265265,31.4686,169.09,169.01,9.8067]
[1641334265668,31.4686,169.09,169.01,8.52]
[1641334266467,31.4686,169.09,169.01,9.02]
[1641334267068,31.4686,169.09,169.01,9.28]
[1641334267271,24.8986,169.09,169.01,9.28]
[1641334279317,24.8986,169.09,169.01,10.533]
[1641334281020,24.8986,169.09,169.01,9.02]
[1641334281222,24.8986,169.09,169.01,0.5]
[1641334281421,25.6586,169.09,168.98,9.02]
[1641334282922,25.6586,169.09,168.98,9.28]
[1641334283924,25.3986,169.09,168.98,9.28]
[1641334284724,24.8986,169.09,168.98,9.28]
[1641334284925,25.3986,169.09,168.98,9.28]
[1641334289139,25.3986,169.09,168.98,8.28]
[1641334290538,24.8986,169.09,168.98,8.28]
[1641334290740,24.8986,169.09,168.98,9.72850786]
[1641334294175,24.8986,169.09,168.99,1.2947]
[1641334294369,24.8986,169.09,169.0,8.52]
[1641334294569,24.8986,169.09,169.0,8.78]
[1641334294770,24.8986,169.09,169.0,9.28]
[1641334295169,24.8986,169.09,169.01,30.72642287]
[1641334295370,24.8986,169.09,169.02,8.52]
[1641334295676,24.8986,169.09,169.02,33.0458]
[1641334295869,24.8986,169.09,169.02,33.5458]
[1641334297070,24.8986,169.09,169.02,9.28]
[1641334311192,7.21819874,169.08,169.02,9.28]
[1641334317121,24.8986,169.09,169.02,9.28]
[1641334331233,24.8986,169.09,169.02,8.78]
[1641334331435,25.1586,169.09,169.02,8.78]
[1641334331633,25.6586,169.09,169.02,0.26]
[1641334332037,25.6586,169.09,169.0,23.0332]
[1641334332435,25.6586,169.09,168.98,9.8442]
[1641334332635,25.6586,169.09,168.98,34.8639]
[1641334335038,25.6586,169.09,168.98,35.1239]
[1641334339070,25.6586,169.09,168.94,8.52]
[1641334339272,8.52,169.08,168.94,8.52]
[1641334339471,8.78,169.08,168.94,9.02]
[1641334339674,9.28,169.08,168.94,9.02]
[1641334339871,24.5977,169.07,168.94,9.02]
[1641334340071,24.8577,169.07,168.94,9.02]
[1641334340270,25.3577,169.07,168.94,9.02]
[1641334340473,1.3293,169.06,168.94,9.02]
[1641334340875,2.0893,169.06,168.94,9.28]
[1641334342279,2.0893,169.06,168.94,34.0888]
[1641334342478,2.0893,169.06,168.94,8.78]
[1641334342676,10.6093,169.06,168.94,0.26]
[1641334343076,10.6093,169.06,168.93,0.26]
[1641334343277,10.6093,169.06,168.91,24.147]
[1641334343476,10.6093,169.06,168.91,26.0073]
[1641334343877,10.6093,169.06,168.91,25.7473]
[1641334345477,10.6093,169.06,168.91,26.0073]
[1641334345677,10.6093,169.06,168.91,25.7473]
[1641334346979,10.6093,169.06,168.91,26.0073]
[1641334349680,10.6093,169.06,168.87,51.48513534]
[1641334349681,10.6093,169.06,168.87,8.52]
[1641334350081,1.44850786,169.05,168.87,8.52]
[1641334350281,8.52,169.04,168.86,1.3514]
[1641334350480,9.28,169.04,168.86,1.3514]
[1641334350682,10.83517447,169.03,168.86,27.14268331]
[1641334350883,89.1498,169.02,168.86,27.14268331]
[1641334351082,89.4098,169.02,168.86,27.64268331]
[1641334351282,89.9098,169.02,168.86,26.45417545]
[1641334351485,89.9098,169.02,168.87,23.5584]
[1641334351885,89.9098,169.02,168.87,24.3184]
[1641334353785,89.9098,169.02,168.88,1.2751]
[1641334353986,89.9098,169.02,168.88,2.0351]
[1641334355185,22.8461,169.01,168.88,2.0351]
[1641334355389,31.8361,169.01,168.88,2.0351]
[1641334355588,32.0961,169.01,168.88,2.0351]
[1641334355786,32.0961,169.01,168.88,1.7751]
[1641334356886,1.2353,169.0,168.88,1.7751]
[1641334357086,1.4953,169.0,168.88,2.0351]
[1641334357287,1.9953,169.0,168.88,2.0351]
[1641334359290,10.5153,169.0,168.88,2.0351]
[1641334359491,24.6632,168.99,168.88,2.0351]
[1641334359895,25.4232,168.99,168.88,2.0351]
[1641334360692,1.2714,168.98,168.88,2.0351]
[1641334360892,1.7714,168.98,168.88,2.0351]
[1641334361191,2.0314,168.98,168.88,1.5351]
[1641334361391,2.0314,168.98,168.87,23.5584]
[1641334361791,10.5514,168.98,168.87,23.5584]
[1641334362193,10.5514,168.98,168.85,1.2537]
[1641334362492,10.5514,168.98,168.85,25.7779]
[1641334363492,10.5514,168.98,168.85,26.0379]
[1641334363991,10.5514,168.98,168.85,25.7779]
[1641334364994,10.5514,168.98,168.85,26.0379]
[1641334366998,19.4369,168.98,168.85,26.0379]
[1641334371298,28.4272,168.98,168.85,26.0379]
[1641334372528,1.44850786,168.97,168.79,73.4983]
[1641334372828,8.52,168.96,168.8,23.1551]
[1641334373031,8.78,168.96,168.8,23.1551]
[1641334373231,1.44850786,168.95,168.8,23.1551]
[1641334373431,26.1414579,168.93,168.8,23.1551]
[1641334373629,9.879,168.92,168.8,23.1551]
[1641334373930,10.379,168.92,168.8,23.1551]
[1641334374131,10.639,168.92,168.8,23.1551]
[1641334375031,35.5628,168.92,168.8,23.1551]
[1641334376933,1.44850786,168.91,168.8,23.1551]
[1641334377334,2.20850786,168.91,168.8,23.1551]
[1641334378336,1.3018,168.9,168.8,23.1551]
[1641334378539,1.5618,168.9,168.8,23.1551]
[1641334378735,2.0618,168.9,168.8,23.1551]
[1641334380341,1.8018,168.9,168.8,23.1551]
[1641334380540,1.8018,168.9,168.8,23.4151]
[1641334380940,1.3018,168.9,168.8,23.4151]
[1641334381142,1.3018,168.9,168.8,23.9151]
[1641334381143,1.8018,168.9,168.8,23.9151]
[1641334381541,2.0618,168.9,168.81,1.2984]
[1641334381946,2.0618,168.9,168.81,1.5584]
[1641334387844,2.0618,168.9,168.81,2.0584]
[1641334388243,2.0618,168.9,168.81,1.5584]
[1641334394452,2.0618,168.9,168.81,2.0584]
[1641334394850,2.0618,168.9,168.81,1.5584]
[1641334396651,1.8018,168.9,168.81,1.5584]